bitfinex/quotes_BTCUSD_20251007
["timestamp","ask_amount","ask_price","bid_price","bid_amount"]
[1759870849107,0.47417225,121910.0,121900.0,0.03969662]
[1759870850850,0.47417225,121910.0,121900.0,0.03059662]
[1759870851059,1.07861198,121910.0,121900.0,0.03059662]
[1759870852078,1.11204198,121910.0,121900.0,0.00600662]
[1759870853427,1.11204198,121910.0,121900.0,0.00100662]
[1759870854713,1.03204518,121910.0,121900.0,0.00100662]
[1759870855211,1.61773617,121910.0,121900.0,0.00100662]
[1759870855442,2.10298389,121910.0,121900.0,0.00100662]
[1759870855641,2.20502595,121910.0,121900.0,0.00100662]
[1759870857295,2.20526595,121910.0,121900.0,0.00100662]
[1759870857516,2.37058275,121910.0,121900.0,0.00100662]
[1759870857723,2.04327275,121910.0,121900.0,0.00100662]
[1759870857930,2.36095275,121910.0,121900.0,0.00100662]
[1759870859054,0.98349051,121910.0,121900.0,0.00100662]
[1759870859279,1.46873823,121910.0,121900.0,0.00100662]
[1759870859491,1.71752823,121910.0,121900.0,0.00100662]
[1759870859700,1.70113823,121910.0,121900.0,0.00100662]
[1759870859879,1.61086123,121910.0,121900.0,0.02559662]
[1759870860081,1.57577923,121910.0,121900.0,0.02559662]
[1759870860633,1.57577923,121910.0,121900.0,0.00100662]
[1759870861315,0.80220075,121910.0,121900.0,0.00100662]
[1759870861509,1.46284617,121910.0,121900.0,0.02559662]
[1759870862267,1.48090417,121910.0,121900.0,0.02559662]
[1759870862816,1.48090417,121910.0,121900.0,0.00100662]
[1759870862817,1.46949617,121910.0,121900.0,0.00100662]
[1759870863440,1.46949617,121910.0,121900.0,0.02559662]
[1759870863660,1.46949617,121910.0,121900.0,0.03469662]
[1759870864027,1.57376297,121910.0,121900.0,0.00100662]
[1759870868096,1.58292297,121910.0,121900.0,0.00100662]
[1759870869724,1.54949297,121910.0,121900.0,0.00100662]
[1759870870006,1.06424525,121910.0,121900.0,0.00100662]
[1759870870225,1.54949297,121910.0,121900.0,0.00100662]
[1759870870432,1.57332297,121910.0,121900.0,0.00100662]
[1759870870643,1.58292297,121910.0,121900.0,0.00100662]
[1759870870844,1.57332297,121910.0,121900.0,0.00100662]
[1759870871052,1.58304397,121910.0,121900.0,0.00100662]
[1759870871266,1.58344597,121910.0,121900.0,0.00100662]
[1759870871839,1.61822397,121910.0,121900.0,0.00100662]
[1759870872076,1.13297625,121910.0,121900.0,0.00100662]
[1759870872407,1.59439397,121910.0,121900.0,0.00100662]
[1759870872613,2.16915675,121910.0,121900.0,0.00100662]
[1759870872732,1.20631596,121910.0,121900.0,0.00100662]
[1759870872939,2.25492673,121910.0,121900.0,0.00100662]
[1759870873411,2.25492953,121910.0,121900.0,0.00100662]
[1759870874195,2.25392953,121910.0,121900.0,0.00100662]
[1759870874372,2.25592953,121910.0,121900.0,0.00100662]
[1759870874977,0.16408236,121890.0,121880.0,0.0054]
[1759870875189,0.91461692,121890.0,121880.0,0.02816]
[1759870875493,0.91461692,121890.0,121880.0,0.03803]
[1759870876224,1.29758692,121890.0,121880.0,0.0054]
[1759870876446,1.78283464,121890.0,121880.0,0.0054]
[1759870876658,1.78283464,121890.0,121880.0,0.0094]
[1759870876659,1.8659567,121890.0,121880.0,0.0094]
[1759870876865,1.38070898,121890.0,121880.0,0.0094]
[1759870877037,1.38070898,121890.0,121880.0,0.0104]
[1759870877038,0.89546126,121890.0,121880.0,0.0104]
[1759870877451,1.8659567,121890.0,121880.0,0.0104]
[1759870877925,0.89546126,121890.0,121880.0,0.0094]
[1759870878077,3.2888437,121890.0,121880.0,0.0094]
[1759870878279,3.2888437,121890.0,121880.0,0.0054]
[1759870878466,3.2984937,121890.0,121880.0,0.0054]
[1759870878696,3.2984937,121890.0,121880.0,0.0074]
[1759870879349,3.3838137,121890.0,121880.0,0.0054]
[1759870879555,3.89921332,121890.0,121880.0,0.0054]
[1759870879730,3.4231156,121890.0,121880.0,0.0054]
[1759870879929,3.43941159,121890.0,121880.0,0.0054]
[1759870880362,3.43841159,121890.0,121880.0,0.0054]
[1759870880897,3.43126159,121890.0,121880.0,0.00642296]
[1759870881320,3.4159656,121890.0,121880.0,0.00642296]
[1759870881655,3.4189656,121890.0,121880.0,0.00642296]
[1759870881862,3.0615237,121890.0,121880.0,0.00642296]
[1759870882085,0.70516992,121890.0,121880.0,0.00642296]
[1759870882309,1.42313764,121890.0,121880.0,0.04049296]
[1759870882489,0.16923286,121890.0,121880.0,0.05011296]
[1759870882699,0.16923286,121890.0,121880.0,0.04049296]
[1759870882700,0.88724058,121890.0,121880.0,0.04049296]
[1759870882904,0.88724058,121890.0,121880.0,0.00642296]
[1759870883047,0.96523738,121890.0,121880.0,0.00642296]
[1759870883933,0.96523738,121890.0,121880.0,0.04049296]
[1759870884132,0.39699286,121890.0,121880.0,0.04049296]
[1759870884363,0.88224058,121890.0,121880.0,0.05011296]
[1759870884555,0.88224058,121890.0,121880.0,0.05211296]
[1759870885050,0.16423286,121890.0,121880.0,0.05211296]
[1759870885294,0.16423286,121890.0,121880.0,0.22345879]
[1759870885502,0.16423286,121890.0,121880.0,0.70870651]
[1759870885646,0.16423286,121890.0,121880.0,0.71270651]
[1759870885848,0.16423286,121890.0,121880.0,0.22745879]
[1759870886070,0.16423286,121890.0,121880.0,0.70870651]
[1759870886479,0.16423286,121890.0,121880.0,0.70970651]
[1759870886860,0.16423286,121890.0,121880.0,0.70870651]
[1759870887245,0.16423286,121890.0,121880.0,0.71070651]
[1759870887456,0.16423286,121890.0,121880.0,0.71670651]
[1759870890324,0.0001505,121890.0,121880.0,1.30277777]
[1759870890879,0.0001505,121890.0,121880.0,1.78802549]
[1759870891309,0.0001505,121890.0,121880.0,1.30277777]
[1759870892198,0.0001505,121890.0,121880.0,1.78202549]
[1759870892587,0.0001505,121890.0,121880.0,1.78802549]
[1759870892871,0.0001505,121890.0,121880.0,1.78202549]
[1759870893312,0.0001505,121890.0,121880.0,1.78002549]
[1759870893534,0.0001505,121890.0,121880.0,2.11980549]
[1759870893755,0.0001505,121890.0,121880.0,1.80160549]
[1759870893940,0.0001505,121890.0,121880.0,2.11980549]
[1759870894215,0.0001505,121890.0,121880.0,2.12780549]
[1759870894437,0.0001505,121890.0,121880.0,2.15795739]
[1759870894832,0.0001505,121890.0,121880.0,2.14995739]
[1759870894961,0.0001505,121890.0,121880.0,2.15795739]
[1759870895423,0.0001505,121890.0,121880.0,1.83975739]
[1759870895625,0.0001505,121890.0,121880.0,0.38401423]
[1759870895826,0.0001505,121890.0,121880.0,2.15787739]
[1759870896254,0.0001505,121890.0,121880.0,1.67262967]
[1759870896713,0.0001505,121890.0,121880.0,1.35450967]
[1759870896920,0.0001505,121890.0,121880.0,1.67262967]
[1759870897544,0.0001505,121890.0,121880.0,1.35450967]
[1759870897750,0.0001505,121890.0,121880.0,1.67262967]
[1759870897970,0.0001505,121890.0,121880.0,2.15787739]
[1759870899919,0.0001505,121890.0,121880.0,2.23134162]
[1759870900325,0.0001505,121890.0,121880.0,2.15787739]
[1759870900821,3.54e-05,121890.0,121880.0,2.23134162]
[1759870902156,3.54e-05,121890.0,121880.0,3.68708478]
[1759870902372,3.54e-05,121890.0,121880.0,4.02708478]
[1759870902570,3.54e-05,121890.0,121880.0,4.05208477]
[1759870902985,3.54e-05,121890.0,121880.0,4.30796477]
[1759870903202,3.54e-05,121890.0,121880.0,4.39328477]
[1759870906355,3.54e-05,121890.0,121880.0,4.41791582]
[1759870908265,3.54e-05,121890.0,121880.0,1.5064295]
[1759870908490,3.54e-05,121890.0,121880.0,4.41791582]
[1759870912269,3.54e-05,121890.0,121880.0,4.41767582]
[1759870914198,3.54e-05,121890.0,121880.0,4.34421159]
[1759870915150,0.00085606,121910.0,121880.0,3.68513159]
[1759870915303,0.00085606,121910.0,121900.0,1.79189863]
[1759870915552,0.00085606,121910.0,121900.0,2.10969863]
[1759870915757,0.00085606,121910.0,121900.0,2.17845863]
[1759870915970,0.00085606,121910.0,121900.0,2.18779863]
[1759870917181,0.00085606,121910.0,121900.0,1.21684478]
[1759870920220,0.00085606,121910.0,121900.0,0.84023217]
[1759870920468,0.00085606,121910.0,121900.0,1.15799217]
[1759870920892,0.00085606,121910.0,121900.0,0.67316286]
[1759870921108,0.00085606,121910.0,121900.0,1.15795217]
[1759870921334,0.00085606,121910.0,121900.0,0.84023217]
[1759870921556,0.00085606,121910.0,121900.0,1.15795217]
[1759870923175,0.00085606,121910.0,121900.0,1.23146793]
[1759870925725,0.00085606,121910.0,121900.0,2.05625724]
[1759870925974,0.00085606,121910.0,121900.0,2.08125723]
[1759870926225,0.00019105,121910.0,121900.0,2.03236949]
[1759870926495,4.485e-05,121910.0,121900.0,2.03236949]
[1759870926739,0.00104485,121910.0,121900.0,2.03236949]
[1759870926902,0.00104485,121910.0,121900.0,2.03436949]
[1759870927373,0.00104485,121910.0,121900.0,2.13720696]
[1759870927788,1e-08,121910.0,121900.0,2.13720696]
[1759870928064,1e-08,121910.0,121900.0,2.23720696]
[1759870928264,0.06619503,121950.0,121940.0,0.64880439]
[1759870928473,0.06634628,121950.0,121940.0,1.04960645]
[1759870928670,0.06634628,121950.0,121940.0,1.12770645]
[1759870928905,0.06839087,121950.0,121940.0,1.12770645]
[1759870929546,0.00219584,121950.0,121940.0,1.12770645]
[1759870930175,0.00319584,121950.0,121940.0,1.04238645]
[1759870930373,0.00319584,121950.0,121940.0,1.12766645]
[1759870930577,0.01019584,121950.0,121940.0,1.12766645]
[1759870932054,0.01019584,121950.0,121940.0,0.81829899]
[1759870932273,0.01019584,121950.0,121940.0,1.13589899]
[1759870932492,0.01019584,121950.0,121940.0,1.05061899]
[1759870932703,0.01019584,121950.0,121940.0,1.13589899]
[1759870934155,0.01019584,121950.0,121940.0,0.81829899]
[1759870934358,0.01019584,121950.0,121940.0,1.13589899]
[1759870935734,0.01019584,121950.0,121940.0,1.6206883]
[1759870935940,0.01019584,121950.0,121940.0,1.13589899]
[1759870936341,0.01019584,121950.0,121940.0,1.6206883]
[1759870936582,0.00919584,121950.0,121940.0,1.13589899]
[1759870936765,0.00219584,121950.0,121940.0,1.6508402]
[1759870937179,0.00619584,121950.0,121940.0,1.6508402]
[1759870937555,0.00619584,121950.0,121940.0,1.16605089]
[1759870937894,0.00619584,121950.0,121940.0,1.6508402]
[1759870938969,0.00619584,121950.0,121940.0,1.9908402]
[1759870940138,0.00619584,121950.0,121940.0,2.04977596]
[1759870940591,0.00219584,121950.0,121940.0,2.04977596]
[1759870940805,0.00419584,121950.0,121940.0,2.04977596]
[1759870941379,0.00419584,121950.0,121940.0,2.05077596]
[1759870942594,0.00419584,121950.0,121940.0,1.9918402]
[1759870942813,0.00419584,121950.0,121940.0,2.01684019]
[1759870943043,0.00419584,121950.0,121940.0,2.04145938]
[1759870943340,1e-08,121950.0,121940.0,2.04145938]
[1759870943890,1e-08,121950.0,121940.0,1.72285938]
[1759870944140,1e-08,121950.0,121940.0,2.38157938]
[1759870944462,1e-08,121950.0,121940.0,2.38357938]
[1759870945108,0.00025437,121960.0,121950.0,0.50400164]
[1759870945337,0.00025437,121960.0,121950.0,1.28015963]
[1759870945567,0.00025437,121960.0,121950.0,2.41213526]
[1759870946310,0.00025437,121960.0,121950.0,2.43675445]
[1759870947120,0.00025437,121960.0,121950.0,2.35143445]
[1759870947342,0.00025437,121960.0,121950.0,2.43671445]
[1759870947701,0.00025437,121960.0,121950.0,2.43771445]
[1759870947905,0.00025437,121960.0,121950.0,2.46786635]
[1759870948105,0.00025437,121960.0,121950.0,2.97765565]
[1759870948339,0.23013002,122000.0,121990.0,0.64873717]
[1759870948340,0.06619503,122000.0,121990.0,0.64873717]
[1759870948593,0.06669932,122000.0,121990.0,1.06534923]
[1759870948820,0.06669932,122000.0,121990.0,1.12621923]
[1759870949037,0.00050429,122000.0,121990.0,1.12621923]
[1759870949491,0.00750429,122000.0,121990.0,1.12621923]
[1759870949756,0.00050429,122000.0,121990.0,1.12621923]
[1759870949974,0.00550429,122000.0,121990.0,1.12621923]
[1759870950128,0.00550429,122000.0,121990.0,1.13431911]
[1759870950552,0.00550429,122000.0,121990.0,0.81675911]
[1759870950755,0.00650429,122000.0,121990.0,1.13455911]
[1759870953200,0.00650429,122000.0,121990.0,0.81675911]
[1759870953431,0.00650429,122000.0,121990.0,1.50467101]
[1759870953865,0.00650429,122000.0,121990.0,1.5292843]
[1759870954089,0.00550429,122000.0,121990.0,1.5292843]
[1759870954311,0.00050429,122000.0,121990.0,1.58809023]
[1759870954509,0.00350429,122000.0,121990.0,1.58809023]
[1759870954728,0.00350429,122000.0,121990.0,1.10330092]
[1759870954926,0.00350429,122000.0,121990.0,1.58809023]
[1759870956086,0.00605858,122000.0,121990.0,1.58809023]
[1759870956324,0.00605858,122000.0,121990.0,1.5292843]
[1759870956678,0.00605858,122000.0,121990.0,1.58809023]
[1759870957354,0.00605858,122000.0,121990.0,1.5292843]
[1759870961457,0.00605858,122000.0,121990.0,1.59009474]
[1759870961915,0.00605858,122000.0,121990.0,1.27233474]
[1759870962138,0.00605858,122000.0,121990.0,0.26836523]
[1759870962385,0.169993,122000.0,121990.0,0.31435992]
[1759870962570,0.169993,122000.0,121990.0,0.0483]
[1759870962776,0.169993,122000.0,121990.0,0.28082]
[1759870963397,0.169993,122000.0,121990.0,0.0483]
[1759870963613,0.169993,122000.0,121990.0,0.28082]
[1759870963816,0.169993,122000.0,121990.0,0.0483]
[1759870964025,0.169993,122000.0,121990.0,0.28086]
[1759870964907,0.169993,122000.0,121990.0,0.0483]
[1759870965116,0.67140231,122000.0,121990.0,0.01593]
[1759870965328,0.16394786,121990.0,121980.0,0.02393]
[1759870965530,0.16394786,121990.0,121980.0,0.03386]
[1759870965752,0.16394786,121990.0,121980.0,0.28239]
[1759870966164,0.18056786,121990.0,121980.0,0.27246]
[1759870966369,0.18056786,121990.0,121980.0,0.01597]
[1759870966577,1.00535717,121990.0,121980.0,0.01597]
[1759870966765,0.16397474,121970.0,121960.0,0.17790593]
[1759870966977,0.16397474,121970.0,121960.0,0.37858799]
[1759870967190,0.16397474,121970.0,121960.0,0.34562206]
[1759870967609,0.16397474,121970.0,121960.0,0.50961025]
[1759870967818,0.16397474,121970.0,121960.0,0.31614025]
[1759870968025,0.16397474,121970.0,121960.0,0.54874025]
[1759870969792,0.16397474,121970.0,121960.0,0.54870025]
[1759870970002,0.16397474,121970.0,121960.0,0.54370025]
[1759870971799,0.1639613,121980.0,121960.0,1.03843956]
[1759870972005,0.1639613,121980.0,121970.0,0.69249405]
[1759870972249,0.1639613,121980.0,121970.0,0.70182405]
[1759870972484,0.1639613,121980.0,121970.0,0.71779405]
[1759870972694,0.16549413,121980.0,121970.0,0.55381931]
[1759870973079,0.16749413,121980.0,121970.0,0.06903]
[1759870973885,0.16849413,121980.0,121970.0,0.06903]
[1759870977022,0.16849413,121980.0,121970.0,0.81086611]
[1759870977023,0.00453283,121980.0,121970.0,0.81086611]
[1759870977228,0.00453283,121980.0,121970.0,1.29476292]
[1759870977630,0.00453283,121980.0,121970.0,0.3260768]
[1759870977834,0.00453283,121980.0,121970.0,1.29476292]
[1759870977986,0.16359282,122000.0,121980.0,0.1639613]
[1759870978330,0.16359282,122000.0,121990.0,0.13295206]
[1759870978543,0.16359282,122000.0,121990.0,0.36559206]
[1759870978722,0.16359282,122000.0,121990.0,0.53940992]
[1759870978930,0.16359282,122000.0,121990.0,1.02375298]
[1759870979491,0.16659282,122000.0,121990.0,1.02375298]
[1759870979705,0.008,122000.0,121990.0,1.03308298]
[1759870980560,0.008,122000.0,121990.0,1.04303298]
[1759870981095,0.008,122000.0,121990.0,0.81039298]
[1759870981324,0.008,122000.0,121990.0,1.12827298]
[1759870981554,0.005,122000.0,121990.0,1.12827298]
[1759870981963,0.001,122000.0,121990.0,1.12827298]
[1759870982160,0.002,122000.0,121990.0,1.04929298]
[1759870983091,0.16392123,122010.0,122000.0,0.16393442]
[1759870983302,0.16407236,122010.0,122000.0,0.73139954]
[1759870983508,0.16407236,122010.0,122000.0,0.96403954]
[1759870983726,0.16407236,122010.0,122000.0,0.08312206]
[1759870983912,0.16560461,122010.0,122000.0,0.96399954]
[1759870984136,0.64994743,122010.0,121990.0,0.16894786]
[1759870984355,0.64841518,122010.0,122000.0,0.23256]
[1759870984715,0.16407212,122010.0,122000.0,0.23256]
[1759870984921,0.16407212,122010.0,121990.0,0.82065298]
[1759870984922,0.16393442,122000.0,121990.0,0.08312206]
[1759870985131,0.16394786,121990.0,121980.0,0.25739936]
[1759870985344,0.16394786,121990.0,121980.0,1.05742448]
[1759870986436,0.16394786,121990.0,121980.0,1.06342448]
[1759870986769,0.16394786,121990.0,121980.0,0.57908142]
[1759870986978,0.16394786,121990.0,121980.0,1.06342448]
[1759870987960,0.16394786,121990.0,121980.0,1.06542448]
[1759870988098,0.16394786,121990.0,121980.0,0.98018448]
[1759870988298,0.16394786,121990.0,121980.0,1.06542448]
[1759870989194,0.16394786,121990.0,121980.0,0.74762448]
[1759870989402,0.16394786,121990.0,121980.0,1.06542448]
[1759870990679,0.16394786,121990.0,121980.0,0.74762448]
[1759870990912,0.16394786,121990.0,121980.0,1.06338448]
[1759870991095,0.16445869,121990.0,121980.0,1.05838448]
[1759870991460,0.16445869,121990.0,121980.0,0.74462448]
[1759870991845,0.16445869,121990.0,121980.0,1.06234448]
[1759870992046,0.64880175,121990.0,121980.0,0.005]
[1759870992328,0.64880175,121990.0,121980.0,0.23752]
[1759870992756,0.64880175,121990.0,121980.0,0.005]
[1759870993323,0.98880175,121990.0,121980.0,0.005]
[1759870993929,0.98706675,121990.0,121980.0,0.005]
[1759870994523,0.64829092,121990.0,121980.0,0.005]
[1759870995790,5.3754121,121990.0,121980.0,0.005]
[1759870996016,4.778101,121990.0,121980.0,1e-08]
[1759870996233,4.80273128,121990.0,121980.0,1e-08]
[1759870996446,4.88272808,121990.0,121980.0,1e-08]
[1759870996661,5.22272808,121990.0,121980.0,1e-08]
[1759870997104,5.22272808,121990.0,121970.0,0.00085546]
[1759870997105,0.5039613,121980.0,121970.0,0.00085546]
[1759870997289,6.07547454,121980.0,121970.0,0.00085546]
[1759870998499,6.08047454,121980.0,121970.0,0.00085546]
[1759870998704,6.12881134,121980.0,121970.0,0.00085546]
[1759870999064,6.13781134,121980.0,121970.0,0.00085546]
[1759870999772,5.52713334,121980.0,121970.0,0.00085546]
[1759870999987,5.04952534,121980.0,121970.0,0.00085546]
[1759871000339,4.79770854,121980.0,121970.0,0.00085546]
[1759871000987,4.47970854,121980.0,121970.0,0.00085546]
[1759871001220,4.79774854,121980.0,121970.0,0.00085546]
[1759871001660,3.02667936,121980.0,121970.0,0.00085546]
[1759871001909,1.72848448,121980.0,121970.0,0.00085546]
[1759871002126,1.96120448,121980.0,121970.0,0.00085546]
[1759871003393,1.94720448,121980.0,121970.0,0.00085546]
[1759871003612,1.98805965,121980.0,121970.0,0.00085546]
[1759871003831,1.99205965,121980.0,121970.0,0.00085546]
[1759871005112,1.95920448,121980.0,121970.0,0.00085546]
[1759871005345,1.95916448,121980.0,121970.0,0.00085546]
[1759871005977,1.9837926,121980.0,121970.0,0.00085546]
[1759871009172,2.0181826,121980.0,121970.0,0.00085546]
[1759871009390,2.0345926,121980.0,121970.0,0.00085546]
[1759871009599,1.7855026,121980.0,121970.0,0.00085546]
[1759871009903,2.0181426,121980.0,121970.0,0.00085546]
[1759871010863,1.7855026,121980.0,121970.0,0.00085546]
[1759871011074,2.0082126,121980.0,121970.0,0.00085546]
[1759871011291,2.0882094,121980.0,121970.0,0.00085546]
[1759871011714,2.06358128,121980.0,121970.0,0.00085546]
[1759871012385,1.98358448,121980.0,121970.0,0.00085546]
[1759871012772,1.76087448,121980.0,121970.0,0.00085546]
[1759871013014,1.48464742,121980.0,121970.0,0.03517546]
[1759871013240,1.81780942,121980.0,121970.0,0.03517546]
[1759871013462,1.71720742,121980.0,121970.0,0.03517546]
[1759871014447,1.71724742,121980.0,121970.0,0.03517546]
[1759871014657,1.71728742,121980.0,121970.0,0.03517546]
[1759871014859,1.48464742,121980.0,121970.0,0.03517546]
[1759871015071,1.16030436,121980.0,121970.0,0.03517546]
[1759871015280,0.89294436,121980.0,121970.0,0.04516546]
[1759871015512,0.66030436,121980.0,121970.0,0.04516546]
[1759871015722,0.89294436,121980.0,121970.0,0.04516546]
[1759871017633,0.66030436,121980.0,121970.0,0.04516546]
[1759871017838,0.89290436,121980.0,121970.0,0.04516546]
[1759871018260,0.66030436,121980.0,121970.0,0.04516546]
[1759871018462,0.89290436,121980.0,121970.0,0.04516546]
[1759871018695,0.1759613,121980.0,121970.0,0.2091402]
[1759871018921,0.012,121980.0,121970.0,0.70254326]
[1759871019131,0.012,121980.0,121970.0,0.79564532]
[1759871019698,0.012,121980.0,121970.0,0.85445125]
[1759871019901,0.008,121980.0,121970.0,0.85445125]
[1759871020428,0.003,121980.0,121970.0,0.85445125]
[1759871020595,0.009,121980.0,121970.0,0.85445125]
[1759871020834,0.003,121980.0,121970.0,0.85445125]
[1759871021061,0.16393473,122000.0,121990.0,0.16394786]
[1759871021296,0.64827779,122000.0,121990.0,0.39666786]
[1759871021493,0.16393473,122000.0,121990.0,0.39666786]
[1759871021698,0.16393473,122000.0,121990.0,0.44978786]
[1759871022757,0.17193473,122000.0,121990.0,0.44978786]
[1759871022949,0.17193473,122000.0,121990.0,0.2858]
[1759871023074,0.65627779,122000.0,121990.0,0.44974786]
[1759871023540,0.66027779,122000.0,121990.0,0.44974786]
[1759871024174,0.17593473,122000.0,121990.0,0.44974786]
[1759871025190,0.29593473,122000.0,121990.0,0.44974786]
[1759871027162,0.2964455,122000.0,121990.0,0.44974786]
[1759871032092,0.78078856,122000.0,121990.0,0.44974786]
[1759871034463,0.78078856,122000.0,121990.0,0.2858]
[1759871035437,0.78078856,122000.0,121990.0,0.44974786]
[1759871036013,0.78078856,122000.0,121990.0,0.44954786]
[1759871037839,0.78078856,122000.0,121990.0,0.05312]
[1759871038029,0.78078856,122000.0,121990.0,0.28552]
[1759871039181,0.2964455,122000.0,121990.0,0.28552]
[1759871040416,0.2964455,122000.0,121990.0,0.05312]
[1759871040632,0.2964455,122000.0,121990.0,0.28548]
[1759871042014,0.2964455,122000.0,121990.0,0.45941786]
[1759871042218,0.29644519,122000.0,121990.0,0.94379147]
[1759871042421,0.13251077,122000.0,121990.0,0.45941786]
[1759871042646,0.29644519,122000.0,121990.0,0.94379147]
[1759871043068,0.29644519,122000.0,121990.0,0.45941786]
[1759871044102,0.29644519,122000.0,121990.0,0.22705786]
[1759871044318,0.29644519,122000.0,121990.0,0.45933786]
[1759871046100,0.29644519,122000.0,121990.0,0.22705786]
[1759871046315,0.29644519,122000.0,121990.0,0.29539]
[1759871046467,0.29644519,122000.0,121990.0,0.06311]
[1759871046685,0.29644519,122000.0,121990.0,0.45933786]
[1759871047272,0.29644519,122000.0,121990.0,0.06311]
[1759871047476,0.29644519,122000.0,121990.0,0.45929786]
[1759871057050,0.13251077,122000.0,121990.0,0.45929786]
[1759871057250,0.13251077,122000.0,121990.0,0.54241992]
[1759871057914,0.13251077,122000.0,121990.0,1.08559946]
[1759871058131,0.12051077,122000.0,121990.0,1.10212946]
[1759871058359,0.12651077,122000.0,121990.0,1.10212946]
[1759871058528,0.12951077,122000.0,121990.0,1.10212946]
[1759871058740,0.00951077,122000.0,121990.0,1.10212946]
[1759871059209,0.00351077,122000.0,121990.0,1.04332353]
[1759871059427,0.00351077,122000.0,121990.0,1.11699323]
[1759871059645,0.00751077,122000.0,121990.0,1.11699323]
[1759871059913,0.00051077,122000.0,121990.0,1.11699323]
[1759871060120,0.00151077,122000.0,121990.0,1.11699323]
[1759871060494,0.00051077,122000.0,121990.0,0.88475323]
[1759871060673,0.00051077,122000.0,121990.0,1.20215323]
[1759871061272,0.00251077,122000.0,121990.0,0.88475323]
[1759871061590,0.00251077,122000.0,121990.0,1.12848353]
[1759871063717,0.00251077,122000.0,121990.0,0.64410992]
[1759871063921,0.00251077,122000.0,121990.0,1.12848353]
[1759871069703,0.00251077,122000.0,121990.0,1.49863543]
[1759871069881,0.00251077,122000.0,121990.0,1.57230513]
[1759871070722,0.00051077,122000.0,121990.0,1.57230513]
[1759871070906,0.00051077,122000.0,121990.0,1.57330513]
[1759871072316,0.00051077,122000.0,121990.0,2.08267873]
[1759871072534,0.00051077,122000.0,121990.0,1.59830512]
[1759871072756,0.00012023,122000.0,121990.0,1.54924497]
[1759871074030,0.00012023,122000.0,121990.0,1.65208244]
[1759871074244,0.00012023,122000.0,121990.0,2.13645605]
[1759871074459,0.00012023,122000.0,121990.0,1.65208244]
[1759871074677,0.00012023,122000.0,121990.0,2.23645605]
[1759871074884,0.00012023,122000.0,121990.0,2.13645605]
[1759871075132,0.00012023,122000.0,121990.0,2.23645605]
[1759871075345,0.00015113,122010.0,122000.0,0.18893441]
[1759871075563,0.00015113,122010.0,122000.0,1.40433116]
[1759871075783,0.00015113,122010.0,122000.0,1.79068306]
[1759871075995,1e-08,122010.0,122000.0,2.37505667]
[1759871076216,0.0002,122030.0,122020.0,0.50390755]
[1759871076477,0.0002,122030.0,122020.0,1.37693937]
[1759871076683,0.0002,122030.0,122020.0,1.39313937]
[1759871076907,0.23822746,122070.0,122060.0,0.16384682]
[1759871077111,0.23837856,122070.0,122060.0,0.45451682]
[1759871077269,0.23837856,122070.0,122060.0,0.46361682]
[1759871077715,0.23837856,122070.0,122060.0,0.47186354]
[1759871077904,0.0001511,122070.0,122060.0,0.47186354]
[1759871078122,0.0001511,122070.0,122060.0,0.5549856]
[1759871078306,0.0041511,122070.0,122060.0,0.31465888]
[1759871078474,0.16799151,122070.0,122060.0,0.54673888]
[1759871078672,0.16799151,122070.0,122060.0,0.55479512]
[1759871078935,0.16799151,122070.0,122060.0,0.54673888]
[1759871079444,0.16999151,122070.0,122060.0,0.54673888]
[1759871079659,0.0061511,122070.0,122060.0,1.04109249]
[1759871080512,0.0061511,122070.0,122060.0,1.04946073]
[1759871081317,0.00972432,122070.0,122060.0,1.04946073]
[1759871081686,0.00972432,122070.0,122060.0,1.07961263]
[1759871082321,0.00772432,122070.0,122060.0,1.07961263]
[1759871082740,0.00872432,122070.0,122060.0,1.07961263]
[1759871082968,0.00872432,122070.0,122060.0,0.84753263]
[1759871083169,0.00872432,122070.0,122060.0,1.16485263]
[1759871083382,0.00472432,122070.0,122060.0,1.16485263]
[1759871083809,0.00672432,122070.0,122060.0,1.16485263]
[1759871085671,0.00672432,122070.0,122060.0,1.07961263]
[1759871085871,0.00672432,122070.0,122060.0,0.84753263]
[1759871086079,0.00672432,122070.0,122060.0,1.16481263]
[1759871087618,0.00672432,122070.0,122060.0,0.84753263]
[1759871087856,0.00672432,122070.0,122060.0,0.32302712]
[1759871088080,0.00672432,122070.0,122060.0,0.31392712]
[1759871088313,0.00672432,122070.0,122060.0,0.63120712]
[1759871088524,0.00672432,122070.0,122060.0,0.31466888]
[1759871088744,0.00672432,122070.0,122060.0,0.63194888]
[1759871089340,0.00672432,122070.0,122060.0,0.31466888]
[1759871090105,0.00672432,122070.0,122060.0,0.63194888]
[1759871090681,0.00672432,122070.0,122060.0,0.31466888]
[1759871090898,0.00672432,122070.0,122060.0,0.63190888]
[1759871091541,0.17056473,122070.0,122060.0,0.22691206]
[1759871091760,0.17056473,122070.0,122060.0,0.37583]
[1759871091761,0.65493834,122070.0,122060.0,0.37583]
[1759871092108,0.65493834,122070.0,122060.0,0.36609]
[1759871092289,0.65493834,122070.0,122060.0,0.05799]
[1759871092443,0.65493834,122070.0,122060.0,0.29003]
[1759871093443,0.65493834,122070.0,122060.0,0.05799]
[1759871093647,0.65493834,122070.0,122060.0,0.28999]
[1759871094946,0.65493834,122070.0,122060.0,0.05799]
[1759871095151,0.65493834,122070.0,122060.0,0.28999]
[1759871097437,0.17056473,122070.0,122060.0,0.28999]
[1759871098994,0.29056473,122070.0,122060.0,0.28999]
[1759871099438,0.29056473,122070.0,122060.0,0.05799]
[1759871099649,0.29056473,122070.0,122060.0,0.28995]
[1759871100399,0.29056473,122070.0,122060.0,0.5566259]
[1759871101077,0.29056473,122070.0,122060.0,1.04040266]
[1759871101550,0.29056473,122070.0,122060.0,0.5566259]
[1759871101784,0.17056473,122070.0,122060.0,1.04040266]
[1759871101973,0.17056473,122070.0,122060.0,0.87654882]
[1759871102227,0.17056473,122070.0,122060.0,0.15089206]
[1759871102400,0.65434149,122070.0,122060.0,0.37303206]
[1759871103788,0.65434149,122070.0,122060.0,0.04885]
[1759871103996,0.65434149,122070.0,122060.0,0.26797]
[1759871104633,0.65334149,122070.0,122060.0,0.26797]
[1759871105724,0.65134149,122070.0,122060.0,0.26797]
[1759871105944,0.65234149,122070.0,122060.0,0.26797]
[1759871106185,0.47912377,122070.0,122060.0,0.26797]
[1759871106359,0.64296418,122070.0,122060.0,0.26797]
[1759871108399,0.16386726,122050.0,122040.0,0.02375]
[1759871108626,0.16388069,122040.0,122030.0,0.04306]
[1759871108832,0.64765745,122040.0,122030.0,0.29298206]
[1759871109033,0.64765745,122040.0,122030.0,0.30854206]
[1759871109882,0.64765745,122040.0,122030.0,0.14174206]
[1759871110090,0.64765745,122040.0,122030.0,0.37370206]
[1759871110697,0.64765745,122040.0,122030.0,0.05862]
[1759871110833,0.64765745,122040.0,122030.0,0.27878555]
[1759871111937,0.64765745,122040.0,122030.0,0.04682555]
[1759871112148,0.64765745,122040.0,122030.0,0.27878555]
[1759871112710,1.14677421,122040.0,122030.0,0.24752]
[1759871113134,0.66299745,122040.0,122030.0,0.27127]